bitfinex/quotes_ETHUSD_20240717
["timestamp","ask_amount","ask_price","bid_price","bid_amount"]
[1721208136326,2.85654,3500.8,3500.0,2.85713]
[1721208136706,5.12267,3501.0,3500.0,2.85713]
[1721208136903,5.12267,3501.0,3500.1,2.85705]
[1721208137124,2.85624,3501.1,3500.1,2.85705]
[1721208137918,3.585619,3501.2,3500.3,2.85684]
[1721208138218,6.441789,3501.2,3500.3,2.85684]
[1721208138934,3.585619,3501.2,3500.4,2.8568]
[1721208139244,0.585619,3501.2,3500.3,2.85684]
[1721208139419,0.8857139,3501.1,3500.3,2.85684]
[1721208140455,3.8857139,3501.1,3500.4,2.8568]
[1721208140811,0.8857139,3501.1,3500.3,2.85689]
[1721208141552,3.7419739,3501.1,3500.1,2.85702]
[1721208141717,0.73275229,3501.0,3500.1,2.85702]
[1721208143114,3.58912229,3501.0,3500.1,2.85702]
[1721208143312,2.372,3500.9,3499.7,7.36]
[1721208143546,0.39904662,3500.8,3499.7,7.36]
[1721208143726,2.8569,3500.3,3499.7,7.36]
[1721208143935,2.8569,3500.3,3499.2,6.87857]
[1721208144259,2.8569,3500.3,3499.3,6.85766]
[1721208144485,2.8569,3500.3,3499.4,2.85762]
[1721208145462,2.8566,3500.7,3499.2,6.87857]
[1721208145670,2.8566,3500.7,3499.7,2.85733]
[1721208145872,2.85666,3500.6,3499.5,2.85749]
[1721208146079,2.85685,3500.4,3499.4,3.15535138]
[1721208146490,2.85685,3500.4,3499.4,2.85763]
[1721208147087,1.14840566,3500.6,3499.5,2.85753]
[1721208147286,2.85678,3500.5,3499.5,2.85753]
[1721208147614,1.14840566,3500.6,3499.7,2.8573]
[1721208148085,4.00505566,3500.6,3499.7,2.8573]
[1721208149965,1.14840566,3500.6,3499.7,2.85736]
[1721208150168,4.00509566,3500.6,3499.7,2.85736]
[1721208151170,2.85674,3500.5,3499.5,2.85749]
[1721208151390,3.88281423,3500.5,3499.6,0.55]
[1721208151896,3.88281423,3500.5,3499.6,3.40746]
[1721208152811,3.88281423,3500.5,3499.7,2.85737]
[1721208153386,3.88281423,3500.5,3499.6,3.40746]
[1721208153588,0.67394142,3500.4,3499.6,3.40746]
[1721208156415,2.85674,3500.5,3499.6,3.40746]
[1721208158124,2.85674,3500.5,3499.6,3.40741]
[1721208158509,2.85674,3500.5,3499.6,6.26482]
[1721208158815,2.85665,3500.6,3499.7,2.85734]
[1721208159031,6.25558662,3500.8,3499.8,2.85728]
[1721208159401,1.14840166,3500.7,3499.8,2.85728]
[1721208160426,1.14840166,3500.7,3499.9,2.8572]
[1721208160831,4.00497166,3500.7,3499.9,2.8572]
[1721208162121,1.14840166,3500.7,3499.9,2.8572]
[1721208163698,4.00497166,3500.7,3499.9,2.8572]
[1721208163911,1.26324483,3500.6,3499.9,2.8572]
[1721208164311,1.26324483,3500.6,3499.7,2.85732]
[1721208164551,1.26324483,3500.6,3499.9,2.85721]
[1721208164963,1.26324483,3500.6,3499.9,5.14521]
[1721208165628,1.26324483,3500.6,3500.0,2.85712]
[1721208165816,3.39904662,3500.8,3500.0,2.85712]
[1721208166849,6.25557662,3500.8,3500.0,2.85712]
[1721208168135,6.25557662,3500.8,3499.7,2.85734]
[1721208168136,2.85658,3500.7,3499.7,2.85734]
[1721208169219,2.85658,3500.7,3499.9,2.85719]
[1721208170348,2.85658,3500.7,3499.6,0.60089344]
[1721208170349,2.4687,3500.6,3499.6,0.60089344]
[1721208170655,2.85694,3500.3,3499.3,2.85765]
[1721208170858,2.85694,3500.3,3499.4,2.85757]
[1721208171249,2.85694,3500.3,3499.5,0.99352106]
[1721208171550,2.85694,3500.3,3499.4,3.15481594]
[1721208171757,2.85694,3500.3,3499.5,0.99348593]
[1721208172055,2.85694,3500.3,3499.4,3.15481594]
[1721208172359,2.85694,3500.3,3499.5,0.99348643]
[1721208172559,2.85694,3500.3,3499.4,3.15481594]
[1721208172759,2.85694,3500.3,3499.5,2.4837088]
[1721208172959,2.85694,3500.3,3499.5,2.85753]
[1721208173161,2.4687,3500.6,3499.8,2.85726]
[1721208173368,5.4687,3500.6,3499.8,2.85726]
[1721208173534,8.32536,3500.6,3499.8,2.85726]
[1721208173717,8.32536,3500.6,3499.6,0.60089344]
[1721208173718,2.8568,3500.5,3499.6,0.60089344]
[1721208174057,0.83255,3500.4,3499.7,2.48364271]
[1721208174264,0.83255,3500.4,3499.8,0.99343404]
[1721208174556,0.83255,3500.4,3499.8,2.85725]
[1721208174762,3.0,3500.5,3499.9,0.99340673]
[1721208174917,8.32536,3500.6,3499.7,2.85738]
[1721208175771,8.32536,3500.6,3499.7,5.71469]
[1721208176323,8.32536,3500.6,3499.8,0.99345916]
[1721208176666,8.32536,3500.6,3499.8,2.8573]
[1721208176972,1.118196,3500.5,3499.8,2.8573]
[1721208177133,4.118196,3500.5,3499.8,2.8573]
[1721208177466,2.2562,3501.0,3500.3,2.85689]
[1721208178362,2.2562,3501.0,3500.5,2.85668]
[1721208178668,1.191562,3501.4,3500.5,2.85668]
[1721208178669,2.4049,3501.4,3500.6,2.48294076]
[1721208178871,0.44790719,3501.5,3501.0,2.8563]
[1721208179020,2.4049,3501.8,3501.0,2.8563]
[1721208179767,2.4049,3501.8,3501.1,2.85623]
[1721208180139,2.4049,3501.8,3501.2,2.85611]
[1721208180533,2.4049,3501.8,3501.0,2.85628]
[1721208181372,5.80899337,3501.8,3501.0,2.85628]
[1721208181725,2.85577,3501.7,3500.5,3.02859344]
[1721208181923,2.85577,3501.7,3500.7,2.85651]
[1721208182275,2.95331337,3501.8,3500.9,2.8564]
[1721208182564,5.26057,3501.8,3500.9,2.8564]
[1721208182756,2.4049,3501.8,3500.9,2.8564]
[1721208182967,2.385,3501.7,3500.6,0.55]
[1721208183153,2.385,3501.4,3500.4,2.85674]
[1721208183365,2.385,3501.4,3500.5,0.55]
[1721208183366,5.24101,3501.4,3500.5,0.55]
[1721208183543,5.24101,3501.4,3500.1,0.60089344]
[1721208183544,6.050719,3501.4,3500.1,0.60089344]
[1721208183874,2.85618,3501.2,3500.2,2.85692]
[1721208184172,2.85626,3501.1,3500.1,2.85706]
[1721208184549,2.85626,3501.1,3500.2,2.85697]
[1721208184754,2.3303,3501.0,3500.2,2.85697]
[1721208184955,2.3303,3501.0,3500.0,2.85707]
[1721208184956,5.18663,3501.0,3500.0,2.85707]
[1721208185179,5.18663,3501.0,3500.1,0.55]
[1721208185361,5.18663,3501.0,3500.0,2.85707]
[1721208185530,2.85641,3500.9,3500.0,2.85707]
[1721208186271,2.3303,3501.0,3500.1,2.85705]
[1721208186629,5.18663,3501.0,3500.1,2.85705]
[1721208187260,5.18663,3501.0,3499.9,5.71436]
[1721208187444,5.18663,3501.0,3500.0,3.85041636]
[1721208187445,2.85642,3500.9,3500.0,3.85041636]
[1721208187641,2.85642,3500.9,3500.1,2.85704]
[1721208187843,2.85642,3500.9,3499.9,2.85715]
[1721208188162,2.85642,3500.9,3499.8,3.15368979]
[1721208188163,2.85651,3500.8,3499.8,3.15368979]
[1721208188327,2.85667,3500.6,3499.9,0.99334662]
[1721208188534,2.85667,3500.6,3499.8,0.29642979]
[1721208188732,2.4676,3500.5,3499.8,0.29642979]
[1721208189378,2.4676,3500.5,3499.6,2.85746]
[1721208189802,5.32434,3500.5,3499.6,2.85746]
[1721208190303,5.32434,3500.5,3499.7,2.85737]
[1721208190801,2.85684,3500.4,3499.4,10.21757]
[1721208191089,2.85684,3500.4,3499.5,0.99347914]
[1721208191386,2.85684,3500.4,3499.4,10.21756]
[1721208191690,2.85684,3500.4,3499.5,0.99348271]
[1721208191887,2.85684,3500.4,3499.4,10.21756]
[1721208192050,2.85684,3500.4,3499.5,0.99348342]
[1721208192251,2.85684,3500.4,3499.4,2.85756]
[1721208192450,2.85684,3500.4,3499.5,0.99348089]
[1721208192670,3.674951,3500.4,3499.5,2.8575]
[1721208192886,0.818111,3500.4,3499.6,2.85745]
[1721208193086,2.4676,3500.5,3500.0,2.85713]
[1721208193475,2.4676,3500.5,3500.1,2.85705]
[1721208196400,2.4676,3500.5,3499.9,2.85716]
[1721208197172,2.4676,3500.5,3499.9,5.71432]
[1721208197364,2.4676,3500.5,3499.9,2.85716]
[1721208197729,2.4676,3500.5,3499.6,2.85745]
[1721208197730,6.156741,3500.5,3499.6,2.85745]
[1721208198060,6.156741,3500.5,3499.5,2.85747]
[1721208198596,2.4282,3500.4,3499.6,2.85744]
[1721208198798,2.4282,3500.4,3499.9,2.85721]
[1721208199994,2.4282,3500.4,3500.0,0.05713907]
[1721208200302,2.85626,3501.1,3500.1,2.857]
[1721208200303,2.3033,3501.0,3500.1,2.857]
[1721208200502,2.3033,3501.0,3500.4,2.85679]
[1721208201097,2.3033,3501.0,3500.5,2.85671]
[1721208201412,2.3033,3501.0,3500.7,2.85656]
[1721208201558,2.3438,3501.5,3500.7,2.85656]
[1721208202206,2.3438,3502.2,3501.2,2.85609]
[1721208202415,2.3438,3502.2,3501.4,2.85599]
[1721208202569,2.3438,3502.2,3501.6,2.85583]
[1721208203402,2.85488,3502.8,3501.9,2.85558]
[1721208203403,2.3438,3502.7,3501.9,2.85558]
[1721208204265,2.85503,3502.6,3501.4,2.85597]
[1721208204463,0.805369,3502.5,3501.6,2.85578]
[1721208204707,0.805369,3502.5,3501.2,3.18934209]
[1721208204863,2.3438,3502.7,3502.0,2.8555]
[1721208206604,0.44776083,3502.9,3501.7,5.4633]
[1721208206813,0.44776083,3502.9,3502.7,2.85486]
[1721208207107,2.2934,3503.6,3502.9,5.7094]
[1721208207260,0.22934,3503.5,3503.0,2.85466]
[1721208208282,5.5482196,3504.6,3503.0,2.85466]
[1721208208283,2.3325,3504.1,3503.3,2.85444]
[1721208210325,2.3325,3504.1,3503.4,2.91144235]
[1721208210528,2.4281896,3504.6,3503.9,2.85394]
[1721208210732,0.24281896,3504.5,3503.9,2.85394]
[1721208211788,0.24281896,3504.5,3503.3,2.85442]
[1721208211988,0.24281896,3504.5,3503.6,2.8542]
[1721208212210,0.24281896,3504.5,3503.7,2.85411]
[1721208212506,5.2815796,3504.6,3503.8,2.85403]
[1721208212507,2.4281896,3504.6,3503.8,2.85403]
[1721208212713,0.1537896,3504.6,3503.9,0.05707154]
[1721208212886,0.1537896,3504.6,3504.0,2.85387]
[1721208213522,0.1537896,3504.6,3504.1,2.85379]
[1721208213820,0.1537896,3504.6,3503.9,2.85391]
[1721208213992,0.1537896,3504.6,3503.8,2.85402]
[1721208214198,0.1537896,3504.6,3503.6,2.85419]
[1721208214508,2.85348,3504.5,3503.4,3.40434]
[1721208214808,2.4789,3504.3,3503.4,3.40434]
[1721208215199,2.4789,3504.3,3503.5,2.85424]
[1721208215407,2.4789,3504.3,3503.4,3.40434]
[1721208215643,2.4789,3504.3,3503.5,2.85428]
[1721208216104,2.4789,3504.3,3503.4,0.55]
[1721208216304,3.05759666,3504.3,3503.4,0.55]
[1721208216524,3.05759666,3504.3,3503.2,7.36]
[1721208216525,2.85372,3504.2,3503.2,7.36]
[1721208217310,2.85388,3504.0,3503.2,7.36]
[1721208218131,2.85413,3503.7,3503.2,7.36]
[1721208218330,0.285413,3503.6,3502.6,5.70499]
[1721208218497,3.139643,3503.6,3502.6,2.85]
[1721208218830,2.85429,3503.5,3502.6,2.85]
[1721208219396,0.285413,3503.6,3502.6,2.85]
[1721208219397,5.13517,3503.4,3502.6,2.85]
[1721208219932,2.85454,3503.2,3502.6,2.85]
[1721208220135,5.13517,3503.4,3502.6,2.85]
[1721208220349,2.85446,3503.3,3502.4,2.85513]
[1721208220560,5.6772283,3503.4,3502.5,2.85509]
[1721208221057,2.85448,3503.3,3502.4,2.85518]
[1721208222638,2.8228583,3503.4,3502.4,2.85518]
[1721208222855,5.6772283,3503.4,3502.4,2.85518]
[1721208223060,3.73613713,3503.3,3502.4,2.85518]
[1721208223489,3.73613713,3503.3,3502.2,4.55528]
[1721208223689,3.73613713,3503.3,3502.3,0.55]
[1721208223845,3.73613713,3503.3,3502.3,3.40526]
[1721208224271,3.73613713,3503.3,3502.4,2.85517]
[1721208224691,2.8228583,3503.4,3502.6,2.85496]
[1721208224988,2.2808,3503.4,3502.7,0.55]
[1721208225345,2.2808,3503.4,3502.7,3.40493]
[1721208232774,5.13518,3503.4,3502.2,1.7]
[1721208232973,2.85456,3503.2,3502.3,3.40521]
[1721208233314,2.85456,3503.2,3502.3,2.85521]
[1721208233512,2.85461,3503.1,3502.1,2.85536]
[1721208233689,2.85461,3503.1,3502.2,3.40533]
[1721208233875,2.85461,3503.1,3502.2,0.55]
[1721208234074,0.6222688,3503.0,3502.2,0.55]
[1721208234315,3.4769588,3503.0,3502.2,0.55]
[1721208235021,3.4769588,3503.0,3502.2,3.40529]
[1721208236195,2.85469,3503.0,3502.2,3.40529]
[1721208237426,3.368018,3503.3,3502.2,0.55]
[1721208237722,2.85462,3503.1,3502.2,0.55]
[1721208238181,3.368018,3503.3,3502.3,2.85526]
[1721208238378,0.5648818,3503.2,3502.3,2.85526]
[1721208239017,2.3244,3503.1,3501.5,2.541]
[1721208239217,2.85531,3502.3,3501.8,4.0]
[1721208239381,2.3244,3502.4,3501.8,4.0]
[1721208239583,2.85527,3502.3,3501.8,4.0]
[1721208240212,2.3244,3502.4,3501.8,4.0]
[1721208240406,2.3244,3502.4,3501.5,2.8559]
[1721208240821,5.17963,3502.4,3501.5,2.8559]
[1721208240995,2.85528,3502.3,3501.5,2.8559]
[1721208241195,2.85528,3502.3,3501.3,2.85606]
[1721208241429,2.85536,3502.2,3501.4,0.55]
[1721208241589,2.85536,3502.2,3501.3,0.55]
[1721208241986,2.85536,3502.2,3501.3,3.40606]
[1721208242216,2.85536,3502.2,3501.3,3.916666]
[1721208242416,2.85536,3502.2,3501.4,2.85599]
[1721208242603,2.85554,3502.0,3501.3,0.29749401]
[1721208242809,2.85554,3502.0,3501.2,2.85616]
[1721208243014,2.85547,3502.1,3501.2,2.85616]
[1721208243216,2.85536,3502.2,3501.2,2.85616]
[1721208243395,3.4536851,3502.2,3501.2,2.85616]
[1721208243806,2.85553,3502.0,3501.1,2.85621]
[1721208244409,2.85553,3502.0,3501.2,2.85615]
[1721208245447,3.4536851,3502.2,3501.2,2.85615]
[1721208245653,0.5983251,3502.2,3501.2,2.85615]
[1721208245951,2.3244,3502.4,3501.4,2.85592]
[1721208246116,8.17961,3502.4,3501.4,5.71184]
[1721208246311,2.85531,3502.3,3501.4,2.85592]
[1721208246730,2.3244,3502.4,3501.5,2.85589]
[1721208246916,5.3244,3502.4,3501.5,2.85589]
[1721208247136,8.1796,3502.4,3501.5,2.85589]
[1721208247912,2.2875,3502.8,3501.9,2.85551]
[1721208248216,2.541,3503.3,3501.9,2.85551]
[1721208248217,2.85449,3503.3,3502.1,2.85537]
[1721208248422,2.85449,3503.3,3502.4,2.85518]
[1721208248423,2.2875,3503.2,3502.4,2.85518]
[1721208248723,2.2875,3503.2,3502.4,3.310795]
[1721208249126,2.2875,3503.2,3502.6,2.85499]
[1721208249332,2.2875,3503.2,3502.4,2.85513]
[1721208249554,2.2875,3503.2,3502.5,2.85504]
[1721208251052,5.14205,3503.2,3501.9,4.55553]
[1721208251359,2.85515,3502.5,3501.5,2.85587]
[1721208252060,2.85509,3502.6,3501.7,2.85574]
[1721208252228,0.798046,3502.5,3501.7,2.85574]
[1721208252428,3.653176,3502.5,3501.1,1.48936108]
[1721208252629,3.653176,3502.5,3501.6,2.85577]
[1721208252847,3.653176,3502.5,3501.4,5.7119]
[1721208253050,3.653176,3502.5,3501.5,2.85586]
[1721208253251,0.6508266,3502.4,3501.5,2.85586]
[1721208254070,0.6508266,3502.4,3501.6,0.55]
[1721208254237,0.6508266,3502.4,3501.6,3.40583]
[1721208254438,0.798046,3502.5,3501.7,2.85575]
[1721208254636,0.798046,3502.5,3501.8,0.55]
[1721208255527,3.653156,3502.5,3501.8,0.55]
[1721208255942,2.2639,3502.1,3501.0,2.85625]
[1721208256146,2.2639,3502.1,3501.1,2.85622]
[1721208256147,0.511932,3502.0,3501.1,2.85622]
[1721208256346,2.2639,3502.1,3501.1,2.85622]
[1721208256685,5.11935,3502.1,3500.8,7.36]
[1721208256826,3.0,3502.0,3501.2,2.85615]
[1721208257030,2.85551,3502.0,3501.0,2.85626]
[1721208257331,3.797476,3501.9,3501.1,2.85623]
[1721208257978,3.797476,3501.9,3501.2,0.55]
[1721208259202,2.85569,3501.8,3501.2,0.55]
[1721208259353,2.85569,3501.8,3501.0,0.55]
[1721208259564,3.0,3501.9,3501.0,3.40626]
[1721208259767,2.85559,3501.9,3501.0,3.40626]
[1721208260266,3.0,3502.0,3501.1,2.85624]
[1721208260487,3.0,3502.0,3501.4,2.85599]
[1721208260692,2.2639,3502.1,3501.5,0.55]
[1721208260891,0.511922,3502.0,3501.2,3.40609]
[1721208261118,3.511922,3502.0,3501.2,3.40609]
[1721208261302,3.511922,3502.0,3501.3,2.85607]
[1721208261508,3.0,3502.0,3501.4,0.55]
[1721208261834,5.2639,3502.1,3501.4,0.55]
[1721208262694,2.85566,3501.9,3500.9,2.85637]
[1721208262894,2.85566,3501.9,3501.0,0.55]
[1721208263097,2.85566,3501.9,3501.0,3.40631]
[1721208263436,2.85566,3501.9,3501.0,0.55]
[1721208263612,1.150138,3501.8,3501.0,3.40629]
[1721208263822,4.005808,3501.8,3501.0,3.40629]
[1721208264633,4.005808,3501.8,3501.0,0.55]
[1721208264808,2.296,3501.7,3500.9,0.55]
[1721208264986,5.15176,3501.7,3500.9,0.55]
[1721208265194,0.9157568,3501.6,3500.9,0.55]
[1721208266294,3.7716068,3501.6,3500.9,0.55]
[1721208266745,3.7716068,3501.6,3500.7,3.40656]
[1721208267093,3.7716068,3501.6,3500.4,2.85677]
[1721208267094,2.85604,3501.4,3500.4,2.85677]
[1721208267432,2.85604,3501.4,3500.5,2.8567]
[1721208267585,2.85608,3501.3,3500.5,2.8567]
[1721208267788,2.85608,3501.3,3500.4,2.85677]
[1721208268440,5.14958,3501.2,3500.2,2.85696]
[1721208268605,0.514958,3501.1,3500.3,0.55]
[1721208268806,2.85633,3501.0,3500.1,3.40705]
[1721208269019,2.85633,3501.0,3500.2,2.85697]
[1721208269199,2.85633,3501.0,3500.3,0.55]
[1721208269646,2.4,3500.9,3499.6,1.7]
[1721208269799,2.4,3500.9,3500.1,2.85698]
[1721208269800,5.25646,3500.9,3500.1,2.85698]
[1721208270003,5.25646,3500.9,3499.9,2.8572]
[1721208270231,2.85664,3500.7,3499.7,2.85736]
[1721208270896,0.89647968,3500.8,3499.8,2.85728]
[1721208271094,0.89647968,3500.8,3499.9,2.85717]
[1721208271406,5.25642,3500.9,3499.9,2.85717]
[1721208271604,2.85651,3500.8,3500.0,3.40713]
[1721208271809,2.85651,3500.8,3500.0,0.55]
[1721208272011,2.85651,3500.8,3499.9,0.55]
[1721208272233,0.811293,3500.7,3499.9,0.55]
[1721208272412,0.811293,3500.7,3499.4,10.21761]
[1721208272611,2.85682,3500.4,3499.6,2.85742]
[1721208272808,2.4,3500.9,3499.6,2.85742]
[1721208272809,2.8567,3500.6,3499.6,2.85742]
[1721208273034,2.85674,3500.5,3499.6,2.85742]
[1721208273540,2.85674,3500.5,3499.5,4.0]
[1721208273541,2.85684,3500.4,3499.5,6.85752]
[1721208273845,2.85684,3500.4,3499.6,0.55]
[1721208274603,2.85684,3500.4,3499.5,0.55]
[1721208274800,2.85698,3500.2,3499.5,0.55]
[1721208274996,2.3792,3500.3,3499.5,0.55]
[1721208275426,2.3792,3500.3,3499.3,2.85769]
[1721208275427,5.2361,3500.3,3499.4,3.40759]
[1721208275609,3.0,3501.2,3499.4,0.55]
[1721208275610,2.3825,3500.7,3499.4,0.55]
[1721208275946,5.23908,3500.7,3499.8,2.85728]
[1721208276142,2.3825,3500.7,3499.9,3.4072]
[1721208276346,2.3825,3500.7,3500.0,2.85712]
[1721208276643,2.3825,3500.7,3500.1,0.55]
[1721208277039,2.85671,3500.6,3500.1,0.55]
[1721208277240,2.85682,3500.4,3500.1,0.55]
[1721208278305,2.85671,3500.6,3500.1,0.55]
[1721208278506,2.85673,3500.5,3500.1,0.55]
[1721208280103,5.23908,3500.7,3500.1,0.55]
[1721208280300,5.23908,3500.7,3499.7,2.85733]
[1721208280301,2.362,3501.2,3500.4,2.85675]
[1721208280643,2.362,3501.2,3500.5,3.69810893]
[1721208281142,2.3007,3501.7,3500.8,2.85648]
[1721208281350,5.15648,3501.7,3500.9,0.55]
[1721208281662,2.3007,3501.7,3500.9,3.4064]
[1721208281801,2.3007,3501.7,3500.9,2.8564]
[1721208281997,2.3007,3501.7,3501.0,0.55]
[1721208282203,2.3007,3502.1,3501.3,2.85602]
[1721208282448,0.44785945,3502.2,3501.4,0.55]
[1721208282743,6.587172,3503.2,3501.4,0.55]
[1721208282744,2.85471,3503.0,3501.6,1.7]
[1721208282913,0.9222412,3502.9,3502.0,2.85544]
[1721208283244,0.9222412,3502.9,3502.1,2.85541]
[1721208283451,0.9222412,3502.9,3502.2,0.55]
[1721208283751,0.9222412,3502.9,3502.2,3.40534]
[1721208283951,2.3216,3503.1,3502.3,0.05710236]
[1721208284104,2.3216,3503.1,3502.4,3.40517]
[1721208284305,2.3216,3503.1,3502.4,2.85517]
[1721208284615,2.3216,3503.1,3502.5,0.55]
[1721208284819,3.139205,3503.1,3502.5,0.55]
[1721208285746,0.817605,3503.1,3502.5,0.55]
[1721208286603,2.85431,3503.5,3502.5,3.40508]
[1721208287205,2.85437,3503.4,3502.5,3.40508]
[1721208289033,2.85446,3503.3,3502.5,0.55]
[1721208289233,2.85467,3503.1,3502.5,0.55]
[1721208289406,2.3598,3502.9,3501.7,10.21573]
[1721208289743,2.85486,3502.8,3501.9,2.85559]
[1721208289942,2.85494,3502.7,3501.8,4.0]
[1721208290159,2.85494,3502.7,3501.8,2.85565]
[1721208290305,2.85494,3502.7,3501.7,10.21573]
[1721208290505,3.661884,3502.7,3501.9,2.85558]
[1721208291002,3.661884,3502.7,3502.0,0.55]
[1721208291404,0.806944,3502.7,3502.0,3.4055]
[1721208291644,5.21463,3502.9,3502.0,3.4055]
[1721208292142,2.85445,3503.3,3502.0,0.55]
[1721208292317,3.0,3503.2,3502.4,2.85517]
[1721208292508,3.821425,3503.2,3502.5,0.55]
[1721208293154,3.821425,3503.2,3502.5,3.40509]
[1721208293459,0.821425,3503.2,3502.5,3.40509]
[1721208293754,0.821425,3503.2,3502.6,2.855]
[1721208293906,0.821425,3503.2,3502.7,0.55]
[1721208294918,3.0,3503.6,3502.7,0.55]
[1721208295241,2.85414,3503.7,3502.7,3.40492]
[1721208295633,2.85423,3503.6,3502.7,3.40492]
[1721208296205,2.85426,3503.6,3502.7,3.40492]
[1721208296402,2.85414,3503.7,3502.7,3.40492]
[1721208296658,3.0,3503.6,3502.8,2.85484]
[1721208296866,3.0,3503.6,3502.9,0.55]
[1721208297337,3.0,3503.6,3502.9,3.40475]
[1721208297532,0.80996,3503.7,3502.9,3.40475]
[1721208298559,3.66408,3503.7,3502.9,3.40475]
[1721208298841,4.190954,3503.6,3502.9,0.55]
[1721208299043,7.045154,3503.6,3502.9,0.55]
[1721208299245,7.045154,3503.6,3502.7,2.85488]
[1721208299547,7.045154,3503.6,3502.8,3.40485]
[1721208299705,4.190954,3503.6,3502.9,2.85477]
[1721208300038,4.045174,3503.6,3503.0,0.55]
[1721208300251,3.8442754,3503.5,3502.9,0.55]
[1721208300414,2.85434,3503.5,3502.9,0.55]
[1721208300618,2.85434,3503.5,3502.6,0.55]
[1721208300619,2.85438,3503.4,3502.6,0.55]
[1721208301245,2.85434,3503.5,3502.6,0.55]
[1721208301246,2.85447,3503.3,3502.6,0.55]
[1721208301454,2.85447,3503.3,3502.5,3.40507]
[1721208301766,2.85462,3503.1,3502.5,0.55]
[1721208301966,2.85462,3503.1,3502.2,10.21532]
[1721208301967,2.85462,3503.1,3502.3,3.40526]
[1721208302368,2.3579,3503.2,3502.2,7.36]
[1721208302527,2.85483,3502.9,3502.2,7.36]
[1721208302885,2.85461,3503.1,3502.2,7.36]
[1721208303023,2.85481,3502.9,3502.2,7.36]
[1721208303223,0.8497957,3503.0,3501.8,2.488]
[1721208303427,2.85515,3502.5,3501.5,10.21588]
[1721208303743,2.85515,3502.5,3501.7,4.0]
[1721208304265,2.85504,3502.6,3501.7,6.85575]
[1721208304426,2.85498,3502.7,3501.8,2.85567]
[1721208304838,2.8551,3502.5,3501.8,2.85567]
[1721208305051,2.8551,3502.5,3501.9,0.55]
[1721208305289,2.85495,3502.7,3501.7,3.40572]
[1721208305430,2.85511,3502.5,3501.7,3.40572]
[1721208305944,2.85511,3502.5,3501.7,0.55]
[1721208306344,2.85521,3502.4,3501.5,0.55]
[1721208306534,2.85531,3502.3,3501.5,0.55]
[1721208306766,3.426352,3502.3,3501.5,0.55]
[1721208307188,2.85569,3501.8,3501.0,2.2952]
[1721208307489,2.85577,3501.7,3500.9,2.85]
[1721208308477,2.85585,3501.6,3500.9,2.85]
[1721208309973,2.85585,3501.6,3501.0,0.55]
[1721208310288,0.285585,3501.5,3501.0,0.55]
[1721208310444,3.0,3501.6,3500.4,2.85674]
[1721208310643,2.2776,3501.7,3500.4,2.85674]
[1721208310876,2.85613,3501.3,3500.4,2.85674]
[1721208311085,3.0,3501.2,3500.4,2.85674]
[1721208311797,2.85657,3500.7,3499.8,2.3585]
[1721208312084,2.8567,3500.6,3499.6,2.85746]
[1721208312292,2.85657,3500.7,3499.7,4.539845]
[1721208312293,2.85677,3500.5,3499.7,4.539845]
[1721208312771,2.85682,3500.4,3499.7,4.539845]
[1721208313105,2.85682,3500.4,3499.7,0.539845]
[1721208313296,2.8569,3500.3,3499.7,0.539845]
[1721208313447,2.8569,3500.3,3499.3,2.4819]
[1721208313653,2.85712,3500.1,3499.5,4.0]
[1721208313851,2.85712,3500.1,3499.3,2.4819]
[1721208314465,2.8569,3500.3,3499.3,5.3396]
[1721208314664,2.8569,3500.3,3499.4,2.85756]
[1721208314969,2.8569,3500.3,3499.5,0.55]
[1721208315175,2.8569,3500.3,3499.4,0.55]
[1721208315586,2.8569,3500.3,3499.4,3.40762]
[1721208315791,2.85698,3500.2,3499.4,3.40762]
[1721208316494,2.4694,3500.8,3499.4,0.55]
[1721208316495,2.85667,3500.6,3499.4,0.55]
[1721208316810,2.85657,3500.7,3499.8,2.85729]
[1721208317006,2.85666,3500.6,3499.9,0.55]
[1721208317215,2.8568,3500.5,3499.9,0.55]
[1721208317514,2.8568,3500.5,3499.9,0.340741]
[1721208317698,2.85684,3500.4,3499.9,0.340741]
[1721208317901,2.85673,3500.5,3500.0,0.55]
[1721208320089,2.85666,3500.6,3500.0,0.55]
[1721208320290,2.85666,3500.6,3500.0,0.9248121]
[1721208320814,2.85674,3500.5,3500.0,0.9248121]
[1721208322537,2.85634,3501.0,3500.0,0.9248121]
[1721208322820,5.85642,3500.9,3500.0,0.9248121]
[1721208322981,2.85642,3500.9,3500.0,0.9248121]
[1721208323183,2.85658,3500.7,3500.0,0.9248121]
[1721208324301,2.85658,3500.7,3500.0,0.55]
[1721208325333,2.4288,3501.3,3500.0,3.40713]
[1721208325651,2.85654,3500.8,3500.0,3.40713]
[1721208325990,2.85651,3500.8,3500.0,3.40713]
[1721208328505,2.85642,3500.9,3500.1,2.85705]
[1721208328707,1.082584,3501.2,3500.2,0.55]
[1721208328902,2.8564,3500.9,3500.2,0.55]
[1721208329107,2.85637,3501.0,3500.2,0.55]
[1721208329306,3.0,3500.9,3500.2,0.55]
[1721208330348,2.85649,3500.8,3500.2,0.55]
[1721208330511,3.0,3500.9,3500.1,2.85705]
[1721208330707,3.0,3500.9,3500.2,0.55]
[1721208331131,3.0,3500.9,3500.3,2.85689]
[1721208331440,5.85624,3501.1,3500.4,0.55]